Cogmind - Beta 14 @@@ ROGUE MODE // 2024.08.31 @ 14:35:56 Player: Chaotick Result: Destroyed by C-35 Carver with Carbide Saw Performance ------------- Evolutions (7) 3500 Regions Visited (21) 4200 Robots Destroyed (156) 780 Value Destroyed (7024) 7024 Prototype IDs (34) 680 Alien Tech Used (0) 0 Bonus (1875) 1875 TOTAL SCORE: 18059 Bonus ------- High Alert Combat Kills 260 Follower Combat Kills 1009 Entered Garrisons 200 Aligned with FarCom 300 Met Imprinter 300 Friendly Fire -194 Cogmind --------- Core Integrity 0/1300 Matter 297/300 Energy 100/100 System Corruption 16% Temperature Cool (0) Movement Core (50) Location -3/Research Parts ------- > --- POWER (2) -------- (None) > --- PROPULSION (6) --- (None) > --- UTILITY (9) ------ Advanced Target Analyzer Graphene Brace > --- WEAPON (4) ------- (None) > --- INVENTORY (5) ---- Active Sensor Suite Enhanced Quantum Rifle Enhanced Nova Cannon Peak State ------------ > --- POWER ------------ Particle Reactor Quantum Reactor > --- PROPULSION ------- Heavy Treads Advanced Heavy Siege Treads Advanced Heavy Siege Treads > --- UTILITY ---------- Advanced Heat Sink Advanced Heat Sink Advanced Cooling System Huge Storage Unit Improved Targeting Computer Active Sensor Spoofer Graphene Brace Focal Shield Advanced Hacking Suite > --- WEAPON ----------- Enhanced Quantum Rifle Enhanced Quantum Rifle Hypervelocity Mass Driver Advanced Datajack > --- INVENTORY -------- Reinforced Fission Core Biometal Heavy Treads Flexi-carbon Leg Flexi-carbon Leg Flexi-carbon Leg Myomer Leg Myomer Leg Centrium Leg Advanced Heat Sink Matter Compressor Active Sensor Suite Cloak of Protection Improved Medium Armor Plating Wave Gun Enhanced Quantum Rifle Enhanced Quantum Rifle Matter Neutralizer Enhanced Nova Cannon Enhanced Nova Cannon Enhanced Nova Cannon High-powered Shotgun [Rating: 158] Favorites ----------- Power Micro Fission Core Engine Light Angular Momentum Engine Power Core Micro Fission Core Reactor Light Antimatter Reactor Propulsion Medium Treads Treads Medium Treads Leg Flexi-carbon Leg Hover Unit Makeshift Hover Unit Flight Unit VTOL Module Utility Advanced Heat Sink Device Advanced Heat Sink Storage Medium Storage Unit Processor Experimental Core Analyzer Hackware Advanced Hacking Suite Protection Improved Light Armor Plating Weapon Makeshift Shrapnel Gun Energy Gun Field Laser Energy Cannon Heavy Phase Cannon Ballistic Gun Makeshift Shrapnel Gun Ballistic Cannon Flak Cannon Launcher Improved Grenade Launcher Piercing Weapon CR-A16's Pointy Stick Special Melee Weapon Dirty Datajack Build | -11 -10 -10 -9 -9 -9 -8 -8 -7 -6 -6 -6 -6 -5 -5 -5 -5 -5 -5 -4 -4 -3 ------- Run | Yrd Mat Min Mat Min Exi Min Mat Fac Fac Low Low Zio Pro Fac Ext Cet Arc Hub Fac Gar Res Slots Evolved 14 | . . . 2 . . . 2 2 2 . . . . 2 . . . . 2 . 2 Power 1 | . . . . . . . . . 1 . . . . . . . . . . . . Propulsion 4 | . . . 2 . . . . . . . . . . 2 . . . . . . . Utility 7 | . . . . . . . 2 1 1 . . . . . . . . . 2 . 1 Weapon 2 | . . . . . . . . 1 . . . . . . . . . . . . 1 Parts Attached 268 | 7 1 3 12 1 1 1 29 14 41 5 33 6 7 1 14 7 17 6 6 25 31 Power 39 | 1 . 1 2 . . . 4 . 8 . 4 1 2 1 1 1 2 . . 5 6 Engine 16 | 1 . . 2 . . . 4 . 2 . 1 1 1 . 1 1 1 . . . 1 Core 14 | . . 1 . . . . . . 6 . 3 . 1 1 . . . . . 1 1 Reactor 9 | . . . . . . . . . . . . . . . . . 1 . . 4 4 Propulsion 75 | 2 . . 4 . . . 10 6 11 3 5 2 2 . 3 2 4 . 4 8 9 Treads 39 | . . . 4 . . . 10 6 5 . 1 . . . . . 4 . 1 4 4 Leg 28 | 2 . . . . . . . . 6 3 1 1 2 . 3 1 . . . 4 5 Wheel . | . . . . . . . . . . . . . . . . . . . . . . Hover 6 | . . . . . . . . . . . 1 1 . . . 1 . . 3 . . Flight 2 | . . . . . . . . . . . 2 . . . . . . . . . . Utility 85 | 1 1 1 2 1 1 . 8 4 13 1 16 3 . . 6 2 7 5 2 5 6 Device 43 | . . 1 1 . . . 2 1 10 . 9 1 . . 4 1 5 2 1 3 2 Storage 10 | 1 1 . 1 1 1 . . . . . 1 . . . 1 1 . . . 1 1 Processor 13 | . . . . . . . 1 . 1 . 4 2 . . 1 . . . . 1 3 Hackware 3 | . . . . . . . . . . . 2 . . . . . . 1 . . . Protection 16 | . . . . . . . 5 3 2 1 . . . . . . 2 2 1 . . Artifact . | . . . . . . . . . . . . . . . . . . . . . . Weapon 69 | 3 . 1 4 . . 1 7 4 9 1 8 . 3 . 4 2 4 1 . 7 10 Energy Gun 27 | 2 . 1 2 . . 1 2 1 4 . 4 . . . . 1 1 1 . 4 3 Energy Cannon 7 | . . . . . . . 1 . . . 1 . 1 . . . . . . 1 3 Ballistic Gun 23 | 1 . . 1 . . . 2 3 4 . 3 . 2 . 2 1 3 . . 1 . Ballistic Cannon 6 | . . . . . . . 1 . 1 . . . . . 1 . . . . . 3 Launcher 3 | . . . 1 . . . 1 . . . . . . . . . . . . 1 . Special Weapon . | . . . . . . . . . . . . . . . . . . . . . . Impact Weapon . | . . . . . . . . . . . . . . . . . . . . . . Slashing Weapon . | . . . . . . . . . . . . . . . . . . . . . . Piercing Weapon 1 | . . . . . . . . . . . . . . . 1 . . . . . . Special Melee Weapon 2 | . . . . . . . . . . 1 . . . . . . . . . . 1 Unidentified Prototypes 6 | . . . . . . . . . . . 1 1 . . . 2 . . . 2 . Parts Lost 92 | . . . . . . . 12 . 7 1 18 . . . 2 7 6 . . 15 24 Power 14 | . . . . . . . 2 . 1 . 3 . . . . . 1 . . 4 3 Propulsion 39 | . . . . . . . 4 . 3 . 5 . . . 1 6 2 . . 7 11 Utility 15 | . . . . . . . 3 . 1 1 3 . . . . . 2 . . 1 4 Weapon 24 | . . . . . . . 3 . 2 . 7 . . . 1 1 1 . . 3 6 Highest Loss Streak 13 | . . . . . . . 5 . 2 1 12 . . . 2 5 3 . . 7 13 To Critical Strikes 2 | . . . . . . . . . . . . . . . . 2 . . . . . Average Slot Usage (%) 83 | . 96 100 98 100 100 100 90 100 98 91 74 80 85 74 86 75 63 76 80 82 66 Engine 3 | . 14 2 5 11 11 11 8 7 1 . . . 6 2 1 9 5 5 5 1 . Core 4 | . . 11 5 . . . . . 11 6 4 6 6 7 9 1 . . . . . Reactor 1 | . . . . . . . . . . . . . . . . . 4 5 5 7 6 Treads 12 | . . . 41 44 44 44 33 30 18 . 4 . . . . . 14 17 14 12 11 Leg 7 | . 28 28 1 . . . . . 7 26 3 10 19 23 30 7 . . . 8 2 Hover 2 | . . . . . . . . . . . 5 11 6 . . 3 . . 2 2 . Flight 2 | . . . . . . . . . . . 10 3 . . . . . . . . . Device 14 | . . 11 11 11 11 11 10 9 13 18 12 13 13 9 13 17 19 23 24 21 18 Storage 5 | . 24 16 11 11 11 11 9 7 6 6 5 6 6 5 5 5 . . . 4 2 Processor 4 | . . . . . . . 3 7 8 6 5 5 6 5 6 11 . . . . 6 Hackware 1 | . . . . . . . . . . . 3 . . . . . . 1 5 5 2 Protection 3 | . . . . . . . 8 12 9 5 . . . . . . 4 4 5 1 . Energy Gun 5 | . 14 14 13 22 22 22 10 7 6 3 . . . . . 3 3 9 10 9 6 Ballistic Gun 10 | . 14 14 7 . . . 3 15 12 13 14 20 17 11 7 5 5 5 5 4 . Peak Build Rating 158 | 6 7 11 24 25 26 27 34 50 75 76 71 82 82 77 76 81 71 85 115 144 158 Average Rating 64 | 4 6 10 22 24 25 26 29 41 64 72 56 76 77 72 66 65 64 77 98 100 125 On Entrance 52 | . 6 7 11 24 25 26 27 29 49 72 67 61 82 76 53 75 52 71 82 115 144 Naked Turns 16 | . . . . . . . . . . . 5 . . . . . 8 . . . 3 Heaviest Build 157 | 11 13 15 24 34 54 54 68 62 85 70 69 43 57 63 86 80 56 61 72 109 157 Greatest Support 230 | 20 20 20 80 80 80 80 83 112 112 76 66 36 66 66 101 86 84 84 84 230 230 Greatest Overweight (x) 3 | . . . . . . . 2 . 3 . 1 1 1 . . 3 2 . 1 2 3 Average Overweight (x) . | . . . . . . . . . . . . . . . . 1 . . . . . Largest Inventory Capacity 25 | 8 8 8 10 15 20 20 20 20 20 20 20 10 10 10 20 20 10 5 5 20 25 Average Capacity 13 | 6 8 8 8 14 15 20 20 20 20 20 10 10 10 10 18 12 5 5 5 19 19 Most Carried 25 | 7 8 8 10 14 17 20 20 20 20 20 20 10 10 10 20 20 10 5 5 20 25 Average Carried 12 | 4 6 7 8 13 14 19 19 19 19 19 9 9 9 10 13 12 4 4 5 10 18 Final Capacity 20 | 8 8 8 10 15 20 20 20 20 20 20 10 10 10 10 20 10 5 5 5 20 5 Final Carried 20 | 6 8 8 10 14 17 20 19 20 18 20 8 10 10 10 20 10 5 5 5 20 5 Class Distribution -------------------- 21% | Derelict-Gunner 15% | Mutant 15% | Scavenger-Mutant 8% | Scavenger-Gunner 8% | Derelict-Skirmisher 8% | Tank 8% | Scavenger-Tank 6% | Scavenger-Skirmisher 4% | Hacker-Mutant Dominant Class ---------------- Mutant | -10/Materials Mutant | -10/Mines Mutant | -9/Materials Mutant | -9/Mines Mutant | -9/Exiles Mutant | -8/Mines Mutant | -8/Materials Tank | -7/Factory Tank | -6/Factory Scavenger-Gunner | -6/Lower Caves Derelict-Skirmisher | -6/Lower Caves Derelict-Gunner | -6/Zion Derelict-Gunner | -5/Proximity Caves Derelict-Skirmisher | -5/Factory Scavenger-Skirmisher | -5/Extension Scavenger-Mutant | -5/Cetus Scavenger-Mutant | -5/Archives Scavenger-Tank | -5/Hub_04(d) Scavenger-Tank | -4/Factory Scavenger-Skirmisher | -4/Garrison Scavenger-Gunner | -3/Research Resources | -11 -10 -10 -9 -9 -9 -8 -8 -7 -6 -6 -6 -6 -5 -5 -5 -5 -5 -5 -4 -4 -3 ----------- Run | Yrd Mat Min Mat Min Exi Min Mat Fac Fac Low Low Zio Pro Fac Ext Cet Arc Hub Fac Gar Res Matter Collected 7405 | 190 . 126 193 10 10 20 373 291 1119 235 1452 108 732 382 279 212 328 . 206 430 709 Remotely . | . . . . . . . . . . . . . . . . . . . . . . Salvage Created 6218 | . . 92 328 . . . 670 278 1436 121 677 . . 122 45 71 364 . 225 861 928 Parts 331 | . . 6 32 . . . 32 16 79 9 28 . . 8 1 2 8 . 17 40 53 Haulers Intercepted 1 | . . . . . . . 1 . . . . . . . . . . . . . . Recyclers Shooed 9 | . . . 1 . . . 1 . 5 . . . . . . . . . 1 . 1 Parts Field Recycled 48 | . . . . . . . . . . . 8 14 17 9 . . . . . . . Retrieved Matter 176 | . . . . . . . . . . . 24 62 53 37 . . . . . . . Parts Self-Destructed 43 | . . . . . . . . . . 18 21 . 4 . . . . . . . . Prevented 7 | . . . . . . . . . . 2 2 . 3 . . . . . . . . Kills | -11 -10 -10 -9 -9 -9 -8 -8 -7 -6 -6 -6 -6 -5 -5 -5 -5 -5 -5 -4 -4 -3 ------- Run | Yrd Mat Min Mat Min Exi Min Mat Fac Fac Low Low Zio Pro Fac Ext Cet Arc Hub Fac Gar Res Combat Hostiles Destroyed 134 | . . 2 15 . . . 15 6 25 5 20 . . 4 1 2 4 . 4 14 17 Guns 98 | . . 2 9 . . . 6 6 24 5 16 . . 3 . . 4 . 4 12 7 Cannons 25 | . . . . . . . 5 . 1 . 4 . . 1 1 2 . . . 1 10 AOE 11 | . . . 6 . . . 4 . . . . . . . . . . . . 1 . Classes Destroyed 14 | . . 1 5 . . . 4 1 1 . . . . 1 . . . . . 1 . Worker 11 | . . . 2 . . . . . 3 . . . . . . . . . 1 . 5 Builder 3 | . . . . . . . 1 . 1 . . . . . . . . . . . 1 Tunneler 1 | . . . . . . . . . . . . . . 1 . . . . . . . Hauler 1 | . . . . . . . 1 . . . . . . . . . . . . . . Recycler 4 | . . . 1 . . . 1 . 2 . . . . . . . . . . . . Operator 2 | . . . 1 . . . 1 . . . . . . . . . . . . . . Swarmer 39 | . . . 10 . . . . . 3 5 10 . . 4 . . . . . 4 3 Grunt 35 | . . 2 4 . . . 10 3 3 . 6 . . . 1 . . . . 4 2 Sentry 14 | . . . 1 . . . 3 . 3 . 2 . . . . . 4 . . 1 . Specialist 5 | . . . . . . . . . 5 . . . . . . . . . . . . Hunter 16 | . . . . . . . 1 1 4 . 2 . . . . . . . . 2 6 Programmer 19 | . . . . . . . . 2 6 . . . . . . . . . 4 2 5 Heavy 3 | . . . . . . . 1 . 1 . . . . . . . . . . . 1 Behemoth 1 | . . . . . . . . . . . . . . . . . . . . 1 . Cetus Guard 2 | . . . . . . . . . . . . . . . . 2 . . . . . Best Kill Streak 13 | . . 1 13 . . . 6 2 5 4 4 . . 5 1 2 2 . 3 5 8 Combat Bots Only 9 | . . 1 9 . . . 5 2 4 4 4 . . 4 1 2 2 . 2 5 5 Max Kills in Single Turn 4 | . . 1 4 . . . 2 1 2 1 2 . . 2 1 1 1 . 1 1 2 Gunslinging 1 | . . . . . . . . . 1 . 1 . . . . . . . . . . Exploded 2 | . . . 2 . . . 2 . . . . . . . . . . . . 1 . Melee . | . . . . . . . . . . . . . . . . . . . . . . Uniques/NPCs Destroyed . | . . . . . . . . . . . . . . . . . . . . . . Combat | -11 -10 -10 -9 -9 -9 -8 -8 -7 -6 -6 -6 -6 -5 -5 -5 -5 -5 -5 -4 -4 -3 -------- Run | Yrd Mat Min Mat Min Exi Min Mat Fac Fac Low Low Zio Pro Fac Ext Cet Arc Hub Fac Gar Res Hostile Shots Fired 1698 | . 3 10 92 . . . 125 19 207 46 154 . 1 16 26 41 68 . 39 229 622 Missed 469 | . 2 5 21 . . . 28 3 46 13 45 . . 3 7 13 21 . 20 73 169 Damage Taken 21874 | . 10 73 740 . . . 2144 265 2617 601 2064 . 34 247 463 666 1239 . 611 2992 7108 Core 3009 | . . 28 54 . . . 268 36 205 48 482 . 16 37 19 39 194 . 21 262 1300 Absorbed by Shields . | . . . . . . . . . . . . . . . . . . . . . . Reduced by Siege Mode 226 | . . . . . . . . . . . . . . . . . . . . 89 137 Redirected to Shielding 89 | . . . . . . . 5 . . 13 71 . . . . . . . . . . Ignored by Resistances 739 | . . . . . . . . . . . . . . . . 239 33 . . . 467 Regen/Repaired (Parts) 233 | . . . . . . . . . 50 . . . . . . . . . 183 . . Core Remaining (%) 72 | 100 . 88 . . . 86 51 94 . . . . 11 . . . . 71 . 75 . Volleys Fired 418 | . . 9 26 . . . 49 13 65 8 42 . 2 5 12 14 24 . 32 46 71 Largest 4 | . . 2 2 . . . 2 3 3 3 3 . 2 3 3 2 2 . 3 3 4 Hottest 301 | . . 70 119 . . . 119 116 152 125 170 . 49 138 138 78 70 . 210 250 301 Shots Fired 950 | . . 18 52 . . . 96 39 190 22 74 . 3 15 28 28 47 . 56 113 169 Gun 785 | . . 18 48 . . . 60 39 184 22 66 . 3 10 16 14 47 . 56 106 96 Cannon 154 | . . . . . . . 33 . 6 . 8 . . 5 12 14 . . . 3 73 Launcher 11 | . . . 4 . . . 3 . . . . . . . . . . . . 4 . Special . | . . . . . . . . . . . . . . . . . . . . . . Kinetic 482 | . . 9 18 . . . 27 26 125 16 43 . 3 10 16 28 47 . 32 36 46 Thermal 451 | . . 7 30 . . . 66 13 65 6 27 . . 5 12 . . . 24 73 123 Explosive 7 | . . . 4 . . . 3 . . . . . . . . . . . . . . Electromagnetic 10 | . . 2 . . . . . . . . 4 . . . . . . . . 4 . Robot Hit Streak 35 | . . 3 5 . . . 18 4 16 3 8 . 4 4 3 6 14 . 8 14 35 Robot Miss Streak 9 | . . 2 6 . . . 4 5 7 6 9 . 1 4 3 3 2 . 4 5 4 Penetration Max 1 | . . . . . . . . . 1 . . . . . . 1 . . . 1 . Secondary Targets 14 | . . . 2 . . . . . 4 2 2 . . . . . 1 . . 2 1 Max Gunslinging Chain 1 | . . . 1 . . . . . 1 1 1 . . . . . 1 . . 1 1 Shots Hit Robots 666 | . . 11 25 . . . 72 27 156 21 58 . 3 6 17 19 39 . 27 66 119 Core Hits 422 | . . 5 25 . . . 49 19 141 17 50 . 1 6 4 7 13 . 9 34 42 Critical Kills 4 | . . . . . . . . . . . . . . 1 . . 1 . 1 1 . Critical Parts Destroyed 5 | . . . . . . . . . . . . . . . 1 . . . 1 3 . Critical Strikes 20 | . . . . . . . 1 . 1 . . . . 1 1 1 5 . 2 6 2 Burn 4 | . . . . . . . 1 . 1 . . . . . . . . . . 2 . Destroy 13 | . . . . . . . . . . . . . . 1 1 . 5 . 2 4 . Blast 3 | . . . . . . . . . . . . . . . . 1 . . . . 2 Melee Attacks 23 | . . . . . . . . . . 12 8 . . . 2 . . . . . 1 Impact . | . . . . . . . . . . . . . . . . . . . . . . Slashing . | . . . . . . . . . . . . . . . . . . . . . . Piercing 22 | . . . . . . . . . . 12 8 . . . 2 . . . . . . Sneak Attacks 1 | . . . . . . . . . . 1 . . . . . . . . . . . Combat Hostiles 1 | . . . . . . . . . . 1 . . . . . . . . . . . Follow-up Attacks . | . . . . . . . . . . . . . . . . . . . . . . Damage Inflicted 18415 | . . 125 948 . . . 2101 420 3078 273 1206 . 34 226 503 579 1165 21 938 2028 4770 Guns 12244 | . . 125 324 . . . 746 417 2991 253 973 . 34 48 161 241 1165 . 938 1646 2182 Cannons 3915 | . . . . . . . 518 . 60 . 221 . . 104 307 338 . . . 124 2243 Explosions 2068 | . . . 624 . . . 813 . . . . . . 74 . . . . . 258 299 Melee 67 | . . . . . . . . . . 20 12 . . . 35 . . . . . . Ramming 121 | . . . . . . . 24 3 27 . . . . . . . . 21 . . 46 Kinetic 7985 | . . 22 93 . . . 396 295 1960 195 476 . 34 48 161 579 1165 . 453 576 1532 Thermal 8066 | . . 75 231 . . . 868 122 1091 58 638 . . 104 307 . . . 485 1194 2893 Explosive 1660 | . . . 624 . . . 737 . . . . . . . . . . . . . 299 Electromagnetic 516 | . . 28 . . . . 76 . . . 80 . . 74 . . . . . 258 . Impact . | . . . . . . . . . . . . . . . . . . . . . . Slashing . | . . . . . . . . . . . . . . . . . . . . . . Piercing 67 | . . . . . . . . . . 20 12 . . . 35 . . . . . . Highest Corruption 16 | . . . . . . . 1 1 7 7 7 4 . 1 1 1 1 1 3 4 16 Average Corruption 4 | . . . . . . . 1 1 5 7 5 4 . 1 1 1 1 1 2 3 11 Corruption Purged 3 | . . . . . . . . . . . 3 . . . . . . . . . . Corruption Blocked . | . . . . . . . . . . . . . . . . . . . . . . Effects 191 | . . . . . . . 2 3 14 19 90 2 . . 3 2 7 . 6 18 25 Message Errors 53 | . . . . . . . . 1 3 5 29 2 . . 1 1 2 . 2 5 2 Matter Fused 39 | . . . . . . . 1 . 3 5 20 . . . 1 . . . 1 3 5 Heat Flow Errors 23 | . . . . . . . . 1 3 . 12 . . . . . 1 . 1 2 3 Energy Discharges 23 | . . . . . . . 1 1 1 1 14 . . . . . 1 . 1 3 . Parts Rejected 4 | . . . . . . . . . 1 . . . . . . . . . . 1 2 Data Loss (minor) 20 | . . . . . . . . . 2 4 9 . . . . . 1 . 1 . 3 Data Loss (major) 7 | . . . . . . . . . 1 1 1 . . . . 1 2 . . 1 . Misfires 3 | . . . . . . . . . . 1 1 . . . 1 . . . . . . Alerts 5 | . . . . . . . . . . 1 3 . . . . . . . . 1 . Misdirections 6 | . . . . . . . . . . . . . . . . . . . . . 6 Weapon Failures 8 | . . . . . . . . . . 1 1 . . . . . . . . 2 4 Overload Shots . | . . . . . . . . . . . . . . . . . . . . . . Overflow Damage 406 | . . . 10 . . . 127 . . . 6 . . 11 . . . . . . 252 Projectiles 269 | . . . . . . . . . . . 6 . . 11 . . . . . . 252 Explosions 137 | . . . 10 . . . 127 . . . . . . . . . . . . . . Melee . | . . . . . . . . . . . . . . . . . . . . . . Knockbacks 24 | . . . . . . . 5 . 1 . . . . . . . . . . . 18 Impact 2 | . . . . . . . . . 1 . . . . . . . . . . . 1 Kinetic 20 | . . . . . . . 5 . . . . . . . . . . . . . 15 Secondary 2 | . . . . . . . . . . . . . . . . . . . . . 2 Self-Inflicted Damage 499 | . . . 93 . . . 234 . . . . . . 71 . . . . . 6 95 Shots 12 | . . . 3 . . . 5 . . . . . . 2 . . . . . 1 1 Rammed 17 | . . . . . . . . 1 3 . . . . . . . . 1 . . 12 Targets Rammed 22 | . . . . . . . 2 1 5 . . . . . . . . 1 . . 13 Kicked 3 | . . . . . . . . . 2 . . . . . . . . . . . 1 Crushed 2 | . . . . . . . 2 . . . . . . . . . . . . . . Highest Temperature 552 | . . 146 35 . . . 428 245 188 9 552 . 10 338 198 . 64 . 351 147 516 Average Temperature 105 | . . 62 9 . . . 117 53 38 3 167 . 7 180 79 . 14 . 155 50 193 Received Heat Transfer 2610 | . . 42 138 . . . 666 90 273 72 297 . . . 120 . 189 . 36 291 396 Effects 27 | . . . . . . . 1 . . . 13 . . 3 . . . . . . 10 Shutdowns 8 | . . . . . . . . . . . 4 . . 1 . . . . . . 3 Energy Bleed 7 | . . . . . . . . . . . 4 . . 2 . . . . . . 1 Interference 4 | . . . . . . . 1 . . . 1 . . . . . . . . . 2 Matter Decay 4 | . . . . . . . . . . . 2 . . . . . . . . . 2 Short Circuit 1 | . . . . . . . . . . . . . . . . . . . . . 1 Damage (minor) 2 | . . . . . . . . . . . 1 . . . . . . . . . 1 Damage (core) 1 | . . . . . . . . . . . 1 . . . . . . . . . . Siege Activations 2 | . . . . . . . . . . . . . . . . . . . . 1 1 Total Turns 57 | . . . . . . . . . . . . . . . . . . . . 18 39 Longest Duration 39 | . . . . . . . . . . . . . . . . . . . . 18 39 Robots Corrupted . | . . . . . . . . . . . . . . . . . . . . . . Combat Hostiles . | . . . . . . . . . . . . . . . . . . . . . . Parts Fried . | . . . . . . . . . . . . . . . . . . . . . . Impact Corruptions . | . . . . . . . . . . . . . . . . . . . . . . Robots Melted . | . . . . . . . . . . . . . . . . . . . . . . Combat Hostiles . | . . . . . . . . . . . . . . . . . . . . . . Parts Melted 23 | . . . 1 . . . 1 . 2 . 8 . . . . . . . 4 2 5 Heat Transferred 12514 | . . 222 518 . . . 1924 259 2374 111 1300 . . 111 305 . . . 555 1690 3145 Parts Sabotaged 4 | . . . . . . . . . 4 . . . . . . . . . . . . Parts Stolen . | . . . . . . . . . . . . . . . . . . . . . . Parts Stripped . | . . . . . . . . . . . . . . . . . . . . . . Power Chain Reactions . | . . . . . . . . . . . . . . . . . . . . . . Alert | -11 -10 -10 -9 -9 -9 -8 -8 -7 -6 -6 -6 -6 -5 -5 -5 -5 -5 -5 -4 -4 -3 ------- Run | Yrd Mat Min Mat Min Exi Min Mat Fac Fac Low Low Zio Pro Fac Ext Cet Arc Hub Fac Gar Res Peak Influence 525 | . 5 51 467 156 . . 287 181 381 . . . . 131 254 147 132 15 112 525 501 Initial 289 | . . 1 19 156 . . . 121 . . . . . . 63 70 . . 7 85 289 Average 144 | . 4 46 199 156 . . 122 81 142 . . . . 61 123 110 44 3 30 390 329 Maximum Alert Level 2 | . . . 2 . . . 1 . 1 . . . . . 1 . . . . 2 2 Low Security (%) 70 | 100 100 100 58 100 . 100 72 100 58 . . . . 100 88 100 100 100 100 25 . Level 1 21 | . . . 13 . . . 27 . 41 . . . . . 11 . . . . 8 79 Level 2 8 | . . . 27 . . . . . . . . . . . . . . . . 65 20 Level 3 . | . . . . . . . . . . . . . . . . . . . . . . Level 4 . | . . . . . . . . . . . . . . . . . . . . . . Level 5 . | . . . . . . . . . . . . . . . . . . . . . . High Security . | . . . . . . . . . . . . . . . . . . . . . . Max Security . | . . . . . . . . . . . . . . . . . . . . . . Squads Dispatched 27 | . . . 2 . . . 5 2 10 . . . . . . . . . 2 . 6 Investigation 1 | . . . 1 . . . . . . . . . . . . . . . . . . Extermination 8 | . . . . . . . . 2 3 . . . . . . . . . 2 . 1 Reinforcement 15 | . . . 1 . . . 5 . 4 . . . . . . . . . . . 5 Assault . | . . . . . . . . . . . . . . . . . . . . . . Garrison 3 | . . . . . . . . . 3 . . . . . . . . . . . . Intercept . | . . . . . . . . . . . . . . . . . . . . . . Searches Triggered . | . . . . . . . . . . . . . . . . . . . . . . Construction Impeded 3 | . . . . . . . 1 . . . . . . . . . . . . . 2 Haulers Reinforced . | . . . . . . . . . . . . . . . . . . . . . . Active Scanning Responses . | . . . . . . . . . . . . . . . . . . . . . . Cargo Convoy Interrupts 1 | . . . . . . . . . 1 . . . . . . . . . . . . Stealth | -11 -10 -10 -9 -9 -9 -8 -8 -7 -6 -6 -6 -6 -5 -5 -5 -5 -5 -5 -4 -4 -3 --------- Run | Yrd Mat Min Mat Min Exi Min Mat Fac Fac Low Low Zio Pro Fac Ext Cet Arc Hub Fac Gar Res Distress Signals 15 | . . . 1 . . . 2 . 3 . . . . . 2 2 . . . . 5 Communications Jammed 17 | . . . . . . . . . . . . . . . . . . . . 17 . Distress Signals 17 | . . . . . . . . . . . . . . . . . . . . 17 . Times Spotted 268 | . 3 2 25 . . . 30 6 41 18 22 . 2 4 15 10 6 1 8 30 45 Peak Tracking Total 11 | . 3 2 9 . . . 8 2 6 7 7 . 1 4 4 5 2 1 3 9 11 Tactical Retreats 17 | . . . 1 . . . 4 . 1 2 . . . . 1 . . . . 3 5 Traps | -11 -10 -10 -9 -9 -9 -8 -8 -7 -6 -6 -6 -6 -5 -5 -5 -5 -5 -5 -4 -4 -3 ------- Run | Yrd Mat Min Mat Min Exi Min Mat Fac Fac Low Low Zio Pro Fac Ext Cet Arc Hub Fac Gar Res Traps Triggered 6 | . . . 1 . . . 3 1 1 . . . . . . . . . . . . Indirectly . | . . . . . . . . . . . . . . . . . . . . . . Trap Hack Attempts . | . . . . . . . . . . . . . . . . . . . . . . Triggered . | . . . . . . . . . . . . . . . . . . . . . . Disarmed . | . . . . . . . . . . . . . . . . . . . . . . Reprogrammed . | . . . . . . . . . . . . . . . . . . . . . . Reused . | . . . . . . . . . . . . . . . . . . . . . . Traps Extracted . | . . . . . . . . . . . . . . . . . . . . . . Installed . | . . . . . . . . . . . . . . . . . . . . . . Triggered 1 | . . . . . . . 1 . . . . . . . . . . . . . . Machines | -11 -10 -10 -9 -9 -9 -8 -8 -7 -6 -6 -6 -6 -5 -5 -5 -5 -5 -5 -4 -4 -3 ---------- Run | Yrd Mat Min Mat Min Exi Min Mat Fac Fac Low Low Zio Pro Fac Ext Cet Arc Hub Fac Gar Res Machines Disabled 15 | . . . 2 . . . 4 . . . 1 . . 2 . . 2 . 2 1 1 Max in Single Turn 2 | . . . 1 . . . 1 . . . 1 . . 2 . . 1 . 2 1 1 Machines Repaired . | . . . . . . . . . . . . . . . . . . . . . . Machines Dismantled . | . . . . . . . . . . . . . . . . . . . . . . Machines Sabotaged . | . . . . . . . . . . . . . . . . . . . . . . Overloaded Fab Kills . | . . . . . . . . . . . . . . . . . . . . . . Hacking | -11 -10 -10 -9 -9 -9 -8 -8 -7 -6 -6 -6 -6 -5 -5 -5 -5 -5 -5 -4 -4 -3 --------- Run | Yrd Mat Min Mat Min Exi Min Mat Fac Fac Low Low Zio Pro Fac Ext Cet Arc Hub Fac Gar Res Machines Accessed 34 | . 1 . 2 . 3 . 2 3 6 2 1 . . . 3 2 1 2 3 1 2 Terminals 24 | . 1 . 2 . . . 2 3 4 1 1 . . . 3 2 . 2 1 1 1 Fabricators 1 | . . . . . . . . . 1 . . . . . . . . . . . . Repair Stations 2 | . . . . . . . . . 1 . . . . . . . . . 1 . . Recycling Units . | . . . . . . . . . . . . . . . . . . . . . . Scanalyzers 1 | . . . . . . . . . . . . . . . . . . . . . 1 Garrison Access 1 | . . . . . . . . . . . . . . . . . . . 1 . . Total Hacks 84 | . 5 . 6 . 9 . 5 5 9 4 5 . . . 5 3 14 4 5 2 3 Successful 60 | . 3 . 6 . 9 . 1 1 4 4 5 . . . 3 1 14 1 4 1 3 Failed 24 | . 2 . . . . . 4 4 5 . . . . . 2 2 . 3 1 1 . Catastrophic 9 | . . . . . . . 3 3 1 . . . . . . 1 . 1 . . . Database Lockouts . | . . . . . . . . . . . . . . . . . . . . . . Manual 14 | . . . . . 2 . 3 . . . . 1 . 2 . 2 4 . . . . Terminals 53 | . 5 . 6 . . . 5 5 6 3 5 . . . 5 3 . 4 2 2 2 Fabricators 1 | . . . . . . . . . 1 . . . . . . . . . . . . Repair Stations 4 | . . . . . . . . . 2 . . . . . . . . . 2 . . Recycling Units . | . . . . . . . . . . . . . . . . . . . . . . Scanalyzers 1 | . . . . . . . . . . . . . . . . . . . . . 1 Garrison Access 1 | . . . . . . . . . . . . . . . . . . . 1 . . Terminal Hacks 54 | . 3 . 6 . 9 . 1 1 2 4 5 . . . 3 1 14 1 1 1 2 Record 35 | . . . . . 8 . 1 . . 3 5 . . . . 1 14 1 . . 2 Prototype ID Bank 1 | . 1 . . . . . . . . . . . . . . . . . . . . Open Door 4 | . . . . . . . . . . 1 . . . . 3 . . . . . . Emergency Access Points 4 | . . . 2 . . . . . 1 . . . . . . . . . . 1 . Alert Level 1 | . . . 1 . . . . . . . . . . . . . . . . . . Unreport Threat 1 | . . . 1 . . . . . . . . . . . . . . . . . . Locate Traps 4 | . . . 1 . . . . 1 1 . . . . . . . . . 1 . . Transport Status 1 | . . . 1 . . . . . . . . . . . . . . . . . . Hauler Manifests 1 | . 1 . . . . . . . . . . . . . . . . . . . . Zone Layout 1 | . 1 . . . . . . . . . . . . . . . . . . . . Derelict Proto ID Bank 1 | . . . . . 1 . . . . . . . . . . . . . . . . Fabricator Hacks . | . . . . . . . . . . . . . . . . . . . . . . Repair Station Hacks 4 | . . . . . . . . . 2 . . . . . . . . . 2 . . Scan Component 2 | . . . . . . . . . 1 . . . . . . . . . 1 . . Repair 2 | . . . . . . . . . 1 . . . . . . . . . 1 . . Recycling Unit Hacks . | . . . . . . . . . . . . . . . . . . . . . . Scanalyzer 1 | . . . . . . . . . . . . . . . . . . . . . 1 Insert Component 1 | . . . . . . . . . . . . . . . . . . . . . 1 Garrison Access Hacks 1 | . . . . . . . . . . . . . . . . . . . 1 . . Unlock Access 1 | . . . . . . . . . . . . . . . . . . . 1 . . Unauthorized Hacks . | . . . . . . . . . . . . . . . . . . . . . . Terminals . | . . . . . . . . . . . . . . . . . . . . . . Fabricators . | . . . . . . . . . . . . . . . . . . . . . . Repair Stations . | . . . . . . . . . . . . . . . . . . . . . . Recycling Units . | . . . . . . . . . . . . . . . . . . . . . . Scanalyzers . | . . . . . . . . . . . . . . . . . . . . . . Garrison Access . | . . . . . . . . . . . . . . . . . . . . . . Data Cores Recovered 1 | . . . 1 . . . . . . . . . . . . . . . . . . Used . | . . . . . . . . . . . . . . . . . . . . . . Hacking Detections 26 | . 1 . 1 . . . 2 3 5 1 1 . . 1 1 3 . 2 3 1 1 Full Trace Events 1 | . . . . . . . . . . 1 . . . . . . . . . . . Feedback Events . | . . . . . . . . . . . . . . . . . . . . . . Feedback Blocked . | . . . . . . . . . . . . . . . . . . . . . . Robot Schematics Acquired . | . . . . . . . . . . . . . . . . . . . . . . Robots Built . | . . . . . . . . . . . . . . . . . . . . . . Authchips . | . . . . . . . . . . . . . . . . . . . . . . Time . | . . . . . . . . . . . . . . . . . . . . . . Total Robot Build Rating . | . . . . . . . . . . . . . . . . . . . . . . Part Schematics Acquired . | . . . . . . . . . . . . . . . . . . . . . . Parts Built . | . . . . . . . . . . . . . . . . . . . . . . Authchips . | . . . . . . . . . . . . . . . . . . . . . . Time . | . . . . . . . . . . . . . . . . . . . . . . Total Part Build Rating . | . . . . . . . . . . . . . . . . . . . . . . Parts Repaired 2 | . . . . . . . . . 1 . . . . . . . . . 1 . . Time 66 | . . . . . . . . . 44 . . . . . . . . . 22 . . Parts Recycled . | . . . . . . . . . . . . . . . . . . . . . . Recycled Matter . | . . . . . . . . . . . . . . . . . . . . . . Retrieved Matter . | . . . . . . . . . . . . . . . . . . . . . . Retrieved Components . | . . . . . . . . . . . . . . . . . . . . . . Parts Scanalyzed . | . . . . . . . . . . . . . . . . . . . . . . Part Schematics Acquired . | . . . . . . . . . . . . . . . . . . . . . . Parts Damaged . | . . . . . . . . . . . . . . . . . . . . . . Bothacking | -11 -10 -10 -9 -9 -9 -8 -8 -7 -6 -6 -6 -6 -5 -5 -5 -5 -5 -5 -4 -4 -3 ------------ Run | Yrd Mat Min Mat Min Exi Min Mat Fac Fac Low Low Zio Pro Fac Ext Cet Arc Hub Fac Gar Res Used RIF Installer . | . . . . . . . . . . . . . . . . . . . . . . Robots Hacked 1 | . . . . . . . . . . . . . . . . . . . . . 1 Non-combat . | . . . . . . . . . . . . . . . . . . . . . . Combat 1 | . . . . . . . . . . . . . . . . . . . . . 1 Robot Hacks Applied 1 | . . . . . . . . . . . . . . . . . . . . . 1 parse_system 1 | . . . . . . . . . . . . . . . . . . . . . 1 Relay Couplers Released . | . . . . . . . . . . . . . . . . . . . . . . Fabnet Peak Effective % . | . . . . . . . . . . . . . . . . . . . . . . Robots Rewired . | . . . . . . . . . . . . . . . . . . . . . . Allies Hacked . | . . . . . . . . . . . . . . . . . . . . . . Hacks Repelled . | . . . . . . . . . . . . . . . . . . . . . . Allies | -11 -10 -10 -9 -9 -9 -8 -8 -7 -6 -6 -6 -6 -5 -5 -5 -5 -5 -5 -4 -4 -3 -------- Run | Yrd Mat Min Mat Min Exi Min Mat Fac Fac Low Low Zio Pro Fac Ext Cet Arc Hub Fac Gar Res Total Allies 16 | . . 3 . . . . . . . 1 2 5 . 1 2 . . . . 2 . Largest Group 5 | . . 3 3 . . . . . . 1 1 5 5 2 2 1 . . . 2 . Highest-Rated Group 142 | . . 40 40 . . . . . . 43 31 134 134 99 130 94 . . . 142 . Highest-Rated Ally 99 | . . 16 16 . . . . . . 43 31 39 39 99 99 94 . . . 80 . Total Orders . | . . . . . . . . . . . . . . . . . . . . . . Ally Attacks 166 | . . . 31 . . . . . . 4 5 . 37 4 48 29 . . . 8 . Total Damage 5238 | . . . 236 . . . . . . 88 94 . 533 50 2290 1612 . . . 335 . Kills 27 | . . . 3 . . . . . . 3 . . 4 . 13 4 . . . . . Allies Corrupted . | . . . . . . . . . . . . . . . . . . . . . . Allies Melted . | . . . . . . . . . . . . . . . . . . . . . . Intel | -11 -10 -10 -9 -9 -9 -8 -8 -7 -6 -6 -6 -6 -5 -5 -5 -5 -5 -5 -4 -4 -3 ------- Run | Yrd Mat Min Mat Min Exi Min Mat Fac Fac Low Low Zio Pro Fac Ext Cet Arc Hub Fac Gar Res Robot Analysis Total . | . . . . . . . . . . . . . . . . . . . . . . Derelict Logs Recovered 7 | . . 1 . . . . . . . 1 1 3 1 . . . . . . . . Drone Launches . | . . . . . . . . . . . . . . . . . . . . . . Drone Recoveries . | . . . . . . . . . . . . . . . . . . . . . . Exploration | -11 -10 -10 -9 -9 -9 -8 -8 -7 -6 -6 -6 -6 -5 -5 -5 -5 -5 -5 -4 -4 -3 ------------- Run | Yrd Mat Min Mat Min Exi Min Mat Fac Fac Low Low Zio Pro Fac Ext Cet Arc Hub Fac Gar Res Turns Passed 17572 | 83 84 211 387 103 811 66 1032 849 1770 681 3533 1882 998 225 635 430 846 220 921 713 1092 Spaces Moved 8903 | 61 68 147 145 58 473 37 398 460 825 529 1912 939 624 114 353 144 216 130 440 280 550 Core 275 | 8 . . . . . . . . . . 36 . . . . . 13 . . . 218 Treads 4086 | . . . 136 58 473 37 398 460 550 . 778 . . . . . 190 130 440 151 285 Legs 3770 | 53 68 147 9 . . . . . 275 529 394 871 624 114 353 144 13 . . 129 47 Wheels . | . . . . . . . . . . . . . . . . . . . . . . Hover 772 | . . . . . . . . . . . 704 68 . . . . . . . . . Flight . | . . . . . . . . . . . . . . . . . . . . . . Fastest Speed 50 | 50 120 120 120 170 170 170 162 160 120 120 50 130 125 125 123 124 50 160 160 160 50 Average Speed 159 | 110 120 120 166 170 170 170 174 160 156 120 164 197 152 125 123 259 157 160 160 179 114 Slowest Speed 350 | 120 120 120 170 170 170 170 330 162 330 120 240 210 200 125 125 350 280 160 240 320 200 Overloaded Moves . | . . . . . . . . . . . . . . . . . . . . . . Propulsion Burnouts . | . . . . . . . . . . . . . . . . . . . . . . Robots Hopped . | . . . . . . . . . . . . . . . . . . . . . . Cave-ins Triggered . | . . . . . . . . . . . . . . . . . . . . . . Exploration Rate (%) 41 | 4 16 39 22 22 92 14 42 18 26 76 99 83 64 3 43 67 98 14 10 38 13 Regions Visited 21 Branch Regions 12 Pre-discovered Areas 3 | . . 1 . . 1 . . . . 1 . . . . . . . . . . . Known Exits Taken 3 | . . . . . . . . . . . . . 1 1 . . . . 1 . . Unknown Exits Taken 17 | 1 1 1 1 1 1 1 1 1 1 1 1 1 . . 1 1 1 1 . . . Scrap Searched 16 | . . 1 . 1 . 1 . . . 2 5 3 3 . . . . . . . . Spaces Dug 17 | . . . . . . . . . . . . . . . . . . . 11 . 6 Terrain Destroyed 231 | . . . 28 . . . 87 . 2 . . . . 1 2 1 17 . 19 1 73 Melee . | . . . . . . . . . . . . . . . . . . . . . . Projectile 76 | . . . . . . . 4 . 2 . . . . 1 2 1 17 . 19 1 29 AOE 155 | . . . 28 . . . 83 . . . . . . . . . . . . . 44 Terrain Rammed . | . . . . . . . . . . . . . . . . . . . . . . Walls Destroyed . | . . . . . . . . . . . . . . . . . . . . . . Machines Disabled . | . . . . . . . . . . . . . . . . . . . . . . Actions | -11 -10 -10 -9 -9 -9 -8 -8 -7 -6 -6 -6 -6 -5 -5 -5 -5 -5 -5 -4 -4 -3 --------- Run | Yrd Mat Min Mat Min Exi Min Mat Fac Fac Low Low Zio Pro Fac Ext Cet Arc Hub Fac Gar Res Total 11472 | 74 70 165 247 63 482 40 636 553 1155 565 2225 965 669 186 521 178 671 142 606 405 854 Wait 1529 | . . 3 44 . . 1 128 37 175 . 206 10 22 66 124 . 406 . 127 22 158 Move 8883 | 60 67 146 144 57 472 36 397 459 824 528 1911 938 623 113 352 143 215 129 440 279 550 Hop . | . . . . . . . . . . . . . . . . . . . . . . Pick Up 154 | 6 2 1 7 4 6 2 17 11 16 3 14 5 4 . 12 1 6 1 . 24 12 Fast Attach 148 | 6 1 2 6 . . . 17 5 18 4 14 4 6 1 8 3 12 5 6 10 20 Attach 72 | 1 . . . . . . 9 2 12 . 18 2 . . 1 1 5 1 . 12 8 Detach 11 | 1 . . 1 . . . . . . . 4 1 . . . . . . . 2 2 Swap 48 | . . 1 6 1 1 1 3 7 11 1 1 . 1 . 5 3 . . . 3 3 Drop 162 | . . 3 13 1 3 . 14 18 29 8 7 5 11 1 5 13 3 5 1 7 15 Fire 418 | . . 9 26 . . . 49 13 65 8 42 . 2 5 12 14 24 . 32 46 71 Melee 23 | . . . . . . . . . . 12 8 . . . 2 . . . . . 1 Ram 9 | . . . . . . . . . . . . . . . . . . . . . 9 Kick 3 | . . . . . . . . . 2 . . . . . . . . . . . 1 Crush 11 | . . . . . . . 2 1 3 . . . . . . . . 1 . . 4 Escape Stasis . | . . . . . . . . . . . . . . . . . . . . . . Rewire 1 | . . . . . . . . . . 1 . . . . . . . . . . . Trap . | . . . . . . . . . . . . . . . . . . . . . . Miscellaneous . | . . . . . . . . . . . . . . . . . . . . . . Route ------- -11/Scrapyard -10/Materials -10/Mines -9/Materials -9/Mines -9/Exiles -8/Mines -8/Materials -7/Factory -6/Factory -6/Lower Caves -6/Lower Caves (discovered 2 exits: *Fac / *Zio) -6/Zion -5/Proximity Caves -5/Factory -5/Extension (discovered 3 exits: *Fac x2 / *Cet) -5/Cetus -5/Archives (discovered 3 exits: *Fac / *Hub x2) -5/Hub_04(d) -4/Factory -4/Garrison -3/Research History --------- Turn | Location | Event 9 | -11/Scrapyard | Discovered new exit (range 15) 84 | -11/Scrapyard | Entered Materials 115 | -10/Materials | Discovered new exit (range 16) 168 | -10/Materials | Entered Mines 309 | -10/Mines | Build established: Mutant 355 | -10/Mines | Discovered new exit (range 5) 362 | -10/Mines | Assisted by bots powering up and referring to "LRC-V3" 379 | -10/Mines | Entered Materials 379 | -9/Materials | Accompanied by 3 allies 379 | -9/Materials | Evolved 2 slots: Propulsion x2 649 | -9/Materials | Destroyed 9 combat bots 747 | -9/Materials | Discovered new exit (range 12) 766 | -9/Materials | Entered Mines 862 | -9/Mines | Deemed a non-threat by the Exiles lab entrance 862 | -9/Mines | Discovered new exit (range 5) 869 | -9/Mines | Entered Exiles 910 | -9/Exiles | Met 8R-AWN 943 | -9/Exiles | Met EX-HEX 1036 | -9/Exiles | Met EX-DEC 1078 | -9/Exiles | Visited The Gauntlet 1277 | -9/Exiles | Learned location of Zion (-6) 1321 | -9/Exiles | Met EX-BIN 1347 | -9/Exiles | Aligned with FarCom system 1349 | -9/Exiles | Given EX-Vault access code 1420 | -9/Exiles | Opened EX-Vault 1449 | -9/Exiles | Found Cloak of Protection 1483 | -9/Exiles | Warned to stay clear of 0b10 Research branches 1661 | -9/Exiles | Discovered new exit (range 12) 1680 | -9/Exiles | Left Exiles lab with Cloak of Protection 1680 | -9/Exiles | Entered Mines 1724 | -8/Mines | Discovered new exit (range 9) 1746 | -8/Mines | Entered Materials 1746 | -8/Materials | Evolved 2 slots: Utility x2 2392 | -8/Materials | Build established: Scavenger-Mutant 2446 | -8/Materials | Lost 3 parts (1p1u1w) 2568 | -8/Materials | Lost 5 parts (3n1u1w) 2691 | -8/Materials | Discovered new exit (range 13) 2704 | -8/Materials | Build established: Mutant 2736 | -8/Materials | Lost 4 parts (1p1n1u1w) 2778 | -8/Materials | Entered Factory 2778 | -7/Factory | Evolved 2 slots: Utility x1, Weapon x1 3352 | -7/Factory | Build established: Tank 3576 | -7/Factory | Discovered new exit (range 7) 3627 | -7/Factory | Entered another Factory area 3627 | -6/Factory | Evolved 2 slots: Power x1, Utility x1 3721 | -6/Factory | Repaired Med. Treads 4426 | -6/Factory | Garrison activated, responded to threat 4767 | -6/Factory | Cargo convoy interrupted 4904 | -6/Factory | Build established: Scavenger-Gunner 5213 | -6/Factory | Found Launcher Loader 5225 | -6/Factory | Found Launcher Loader 5333 | -6/Factory | Discovered new exit (range 15) 5397 | -6/Factory | Entered Lower Caves 5646 | -6/Lower Caves | Found Prototype Device 5929 | -6/Lower Caves | Attracted the attention of an 0b10 base 6007 | -6/Lower Caves | Learned Research stockpile data 6044 | -6/Lower Caves | Build established: Scavenger-Mutant 6050 | -6/Lower Caves | Encountered a Warlord checkpoint 6058 | -6/Lower Caves | Discovered new exit (range 7) 6078 | -6/Lower Caves | Entered another Lower Caves area 6134 | -6/Lower Caves | Attracted the attention of an 0b10 checkpoint 6176 | -6/Lower Caves | Discovered new exit (range 11) 6313 | -6/Lower Caves | Learned Factory emergency access door positions 6360 | -6/Lower Caves | Lost 3 parts (1p1n1w) 6388 | -6/Lower Caves | Attracted the attention of an 0b10 base 6414 | -6/Lower Caves | Core integrity fell below 50% 6436 | -6/Lower Caves | Released all parts (5) 6449 | -6/Lower Caves | Identified Heart of Steel 6466 | -6/Lower Caves | Lost 12 parts (2p3n2u5w) 6632 | -6/Lower Caves | Discovered new exit (range 9) 6695 | -6/Lower Caves | Build established: Hacker-Mutant 7069 | -6/Lower Caves | Encountered a Warlord checkpoint 7432 | -6/Lower Caves | Build established: Derelict-Mutant 7726 | -6/Lower Caves | Core integrity fell below 20% 7869 | -6/Lower Caves | Build established: Derelict-Gunner 8200 | -6/Lower Caves | Learned Research garrison access intel 8200 | -6/Lower Caves | Learned Armory terminal intel 8200 | -6/Lower Caves | Learned Armory security intel 8467 | -6/Lower Caves | Build established: Derelict-Skirmisher 9400 | -6/Lower Caves | Build established: Derelict-Gunner 9611 | -6/Lower Caves | Entered Zion 9682 | -6/Zion | Found Prototype Processor 9682 | -6/Zion | Identified Exp. Core Analyzer 9685 | -6/Zion | Found Prototype Processor 9775 | -6/Zion | System corruption cleaned by Quarantine Array 10146 | -6/Zion | Received a hallucinogenic algorithm 10348 | -6/Zion | Rebuked by Imprinter 10462 | -6/Zion | Learned Factory emergency access door positions 10528 | -6/Zion | Gained Derelict followers 10631 | -6/Zion | Acquired unknown access codes intercepted by a Zionite 10709 | -6/Zion | Found CR-A16's Pointy Stick 11300 | -6/Zion | Discovered new exit (range 15) 11493 | -6/Zion | Entered Proximity Caves 11493 | -5/Proximity Caves | Accompanied by 5 allies 12213 | -5/Proximity Caves | Identified exit to Factory 12491 | -5/Proximity Caves | Entered Factory 12491 | -5/Factory | Accompanied by 2 allies 12491 | -5/Factory | Evolved 2 slots: Propulsion x2 12492 | -5/Factory | Identified exit to Extension 12678 | -5/Factory | Heart of Steel transformed into Warbot 12716 | -5/Factory | Entered Extension 12716 | -5/Extension | Accompanied by 1 ally (Warbot) 12795 | -5/Extension | Build established: Derelict-Skirmisher 12858 | -5/Extension | Rescued a captive Derelict 13001 | -5/Extension | Rescued a captive Derelict 13058 | -5/Extension | Spotted B-75 Beast 13089 | -5/Extension | Spotted B-75 Beast 13092 | -5/Extension | Allies destroyed B-75 Beast 13109 | -5/Extension | Allies destroyed B-75 Beast 13131 | -5/Extension | Discovered new exit (range 3) 13291 | -5/Extension | Discovered new exit (range 17) 13292 | -5/Extension | Discovered new exit (range 17) 13307 | -5/Extension | Identified Exp. Target Analyzer 13351 | -5/Extension | Entered Cetus 13351 | -5/Cetus | Accompanied by 1 ally (Warbot) 13370 | -5/Cetus | Spotted Cetus Guard 13370 | -5/Cetus | Spotted Cetus Guard 13372 | -5/Cetus | Spotted Cetus Guard 13373 | -5/Cetus | Spotted Cetus Guard 13382 | -5/Cetus | Destroyed Cetus Guard 13397 | -5/Cetus | Destroyed Cetus Guard 13411 | -5/Cetus | Allies destroyed Cetus Guard 13416 | -5/Cetus | Allies destroyed Cetus Guard 13441 | -5/Cetus | Lost 5 parts (5n) 13679 | -5/Cetus | Discovered new exit (range 17) 13730 | -5/Cetus | Spotted Cetus Guard 13730 | -5/Cetus | Spotted Cetus Guard 13733 | -5/Cetus | Spotted Cetus Guard 13733 | -5/Cetus | Spotted Cetus Guard 13755 | -5/Cetus | Build established: Scavenger-Mutant 13781 | -5/Cetus | Entered Archives 13837 | -5/Archives | Released all parts (8) 13935 | -5/Archives | Lost 3 parts (1n2u) 13999 | -5/Archives | Discovered new exit (range 16) 14020 | -5/Archives | Unable to access archive contents 14036 | -5/Archives | Unable to access archive contents 14061 | -5/Archives | Unable to access archive contents 14064 | -5/Archives | Discovered new exit (range 15) 14132 | -5/Archives | Discovered new exit (range 13) 14627 | -5/Archives | Entered Hub_04(d) 14627 | -5/Hub_04(d) | Discovered new exit (range 10) 14847 | -5/Hub_04(d) | Entered Factory 14847 | -4/Factory | Evolved 2 slots: Utility x2 14948 | -4/Factory | Repaired Med. Treads 14971 | -4/Factory | Build established: Scavenger-Tank 15768 | -4/Factory | Identified exit to Garrison 15768 | -4/Factory | Entered Garrison 15880 | -4/Garrison | Triggered checkpoint 15942 | -4/Garrison | Triggered checkpoint 16074 | -4/Garrison | Lost 7 parts (1p4n1u1w) 16170 | -4/Garrison | Found embedded Infiltrators 16218 | -4/Garrison | Discovered new exit (range 10) 16260 | -4/Garrison | Build established: Scavenger-Skirmisher 16306 | -4/Garrison | Spotted B-86 Titan 16385 | -4/Garrison | Destroyed B-86 Titan 16409 | -4/Garrison | Lost 6 parts (2p2n2w) 16481 | -4/Garrison | Entered Research 16481 | -3/Research | Evolved 2 slots: Utility x1, Weapon x1 16483 | -3/Research | Loaded intel: 3 garrison access locations 16743 | -3/Research | Found Prototype Device 16927 | -3/Research | Identified Active Sensor Suite 17053 | -3/Research | Build established: Scavenger-Gunner 17245 | -3/Research | System corruption reached 10% 17283 | -3/Research | Released all parts (9) 17313 | -3/Research | Lost 13 parts (2p4n3u4w) 17418 | -3/Research | Core integrity fell below 50% 17482 | -3/Research | Lost 7 parts (1p4n2w) 17556 | -3/Research | Core integrity fell below 20% 17573 | -3/Research | Destroyed by C-35 Carver with Carbide Saw Last Messages --------------- 17552_ Slug penetrates Wall. 17552_ Acquired 10 matter. 17552_ Penetrated by Slug. 17552_ Centrium Leg destroyed. 17553_ Adv. Target Analyzer destroyed. 17555_ U-05 Engineer builds a Wall. 17555_ Penetrated by Slug. 17556_ Slammed into H-77 Assassin. 17556_ Destabilizing: System interference. 17556_ Adv. Target Analyzer temporarily disabled. 17556_ Penetrated by Slug. 17556_ Slug penetrates Wall. 17556_ Penetrated by Slug. 17557_ Slammed into R-10 Processor. 17558_ Slug penetrates Wall. 17560_ System corrupted: Matter fused (-7). 17560_ Slammed into C-35 Carver. 17569_ K-01 Serf cleans the Meson Extractor. Map ----- +----------------------------------------------------+ | ?????????????????????????????????????????????????? | | ?????????????????????????????????????????????????? | | ?????????????????????????????????????????????????? | | ?????????????????????????????????????????????????? | | ?????????????????????????????????????????????????? | | ?????????????????????????????????????????????????? | | ?????????????????????????????????????????????????? | | ?????????????????????????????????????????????????? | | ?????????????????????????????????????????? ? ????? | | ?????????????????????????????????????????? ? ????? | | ??????????????????????????? ?????????????? ? ????? | | ???????????????????????# ?? #???????????? ? ????# | | ???????????????????????# T ????????????? ? ????# | | ?????????????C?????????# "" ????????????? ? ????# | | ???????????C???????????? ????????????? ? ????? | | ????????????A??????#???? ?????######## # #???? | | ?????????????k u? #### #?????# # # #???? | | ????????????i [ #?????# # # #???? | | ??????????????? / k #?????# # # #???? | | ??????????????? k k #?????? # # +???? | | ????????????????""k """ #??????? # # #???? | | ????????????????R"" """ #???????? # # ###?? | | ??????????? "" "" """ ##########+### #?? | | ?????????? k k k ### | | ?????????? t ccc k | | ?????????? @c c ### | | ?????????????????##+######/###########+### #?? | | ???????????????????????? #???????? ?#######?? | | ?????????????????????? #???????? ?????????? | | ???????????????????? #???????] ????????? | | ?????????????????? #??????? ????????? | | ???????????????? #?????? !#???????? | | ??????????????# #?????? #???????? | | ??????????????###########+###?????########???????? | | ???????????????????????? ???????????????????????? | | ???????????????????????? ???????????????????????? | | ???????????????????????? ???????????????????????? | | ????????????????????????#+???????????????????????? | | ???????????????????""????????????????????????????? | | ???????????????????""????????????????????????????? | | ???????????????????""????????????????????????????? | | ????????????????????G????????????????????????????? | | ???????????????????""????????????????????????????? | | ???????????????????""????????????????????????????? | | ???????????????????""???[????????????????????????? | | ?????????????????????????????????????????????????? | | ?????????????????????????????????????????????????? | | ?????????????????????????????????????????????????? | | ?????????????????????????????????????????????????? | | ?????????????????????????????????????????????????? | +----------------------------------------------------+ Best States ------------- Heat Dissipation 115 Energy Generation 43 Energy Capacity 590 Matter Stores 300 Matter Capacity 400 Sight Range 22 Terrain Scan Range 20 Terrain Scan Density 10 Jamming Range 14 Cloak Strength 5 Additional Mass Support 9 Corruption Block 8 Armor Coverage 750 Resistance: KI 25 Resistance: EM 15 Core Shielding 30 Weapon Shielding 33 Evasion (%) 55 Targeting Accuracy 12 Melee Accuracy 8 Target Analysis 12 Core Analysis 8 Recoil Reduction 6 Kinecelleration 40 Offensive Hacking 14 Defensive Hacking 10 Item Schematics ----------------- None Robot Schematics ------------------ None Fabricated ------------ Nothing Alien Tech Used ----------------- None Achievements -------------- Error 47 Explorer Factory Defaults No Signal Tank What Is This Thing? Challenges ------------ None Game ------ Seed MultinovaGyrokineticHammer Manual? 0 Play Time 03:42:24 Cumulative 52.1 hours Start 2024.08.28 @ 12:52:32 End 2024.08.31 @ 14:35:56 Sessions 3 Manual Loads 0 Difficulty Rogue Special Mode None Game No. 39 Rogue 39 Adventurer 0 Explorer 0 Win Type - Total 0 Types 0/0/0/0/0/0/0/0/0 Lore% 25 Gallery% 45 Achievement% 31 Wizard Run 0 Options --------- Layout 1 ASCII 0 Keyboard 0 Movement Numpad Keybinds 0 Fullscreen 1 Font 32/SmallcapsGlow Map View 50x35 Zoom Use 0% Tactical HUD 1 Map Filters NONE Filters NONE Steam 1 RUN: 3749eb7e-1fa6-4cd6-9c2d-3267f02c029a